{"text_format":"3","workbook":"xlsx","n_sheets":4,"sheets":["Przepływ gotówkowy","Przychód miesięczny","Wydatki miesięczne","DANE WYKRESU"],"not_rendered":{"charts":1,"defined_names":10},"read":"whole","date_system":"1900"}

{"sheet":"Przepływ gotówkowy","index":0,"n_rows":9,"n_cols":5,"rows_kept":9}
[null,"Nazwa"]
[null,"Budżet rodzinny"]
[null,{"$f":"TEXT(TODAY(),\"mmmm\")","v":"January"}]
[null,{"$f":"YEAR(TODAY())","v":2017}]
[null,"Uwaga: tabela Przepływ gotówkowy jest obliczana automatycznie na podstawie wpisów z arkuszy Przychód miesięczny i Wydatki miesięczne"]
[null,"Przepływ gotówkowy","Przewidywane","Rzeczywiste","Odchylenie"]
[null,"Łączny przychód",{"$f":"Przychód[[#Totals],[Przewidywane]]","v":{"v":5700,"d":"5,700"}},{"$f":"Przychód[[#Totals],[Rzeczywiste]]","v":{"v":5500,"d":"5,500"}},{"$f":"Przychód[[#Totals],[Odchylenie]]","v":-200}]
[null,"Łączne wydatki",{"$f":"Wydatek[[#Totals],[Przewidywane]]","v":{"v":3603,"d":"3,603"}},{"$f":"Wydatek[[#Totals],[Rzeczywiste]]","v":{"v":3655,"d":"3,655"}},{"$f":"Wydatek[[#Totals],[Odchylenie]]","v":-52}]
[null,"Łączna gotówka",{"$f":"C7-C8","v":{"v":2097,"d":"2,097"}},{"$f":"D7-D8","v":{"v":1845,"d":"1,845"}},{"$f":"SUBTOTAL(109,Przepływ_gotówkowy[Odchylenie])","v":-252}]

{"sheet":"Przychód miesięczny","index":1,"n_rows":9,"n_cols":5,"rows_kept":9}
[null,{"$f":"Nazwa","v":"Nazwa"}]
[null,{"$f":"Tytuł_budżetu","v":"Budżet rodzinny"}]
[null,{"$f":"Miesiąc","v":"January"}]
[null,{"$f":"Rok","v":2017}]
[null,"Przychód miesięczny","Przewidywane","Rzeczywiste","Odchylenie"]
[null,"Przychód 1",{"v":4000,"d":"4,000"},{"v":4000,"d":"4,000"},{"$f":"Przychód[[#This Row],[Rzeczywiste]]-Przychód[[#This Row],[Przewidywane]]","v":0}]
[null,"Przychód 2",{"v":1400,"d":"1,400"},{"v":1500,"d":"1,500"},{"$f":"Przychód[[#This Row],[Rzeczywiste]]-Przychód[[#This Row],[Przewidywane]]","v":100}]
[null,"Inne przychody",300,0,{"$f":"Przychód[[#This Row],[Rzeczywiste]]-Przychód[[#This Row],[Przewidywane]]","v":-300}]
[null,"Łączny przychód",{"$f":"SUBTOTAL(109,Przychód[Przewidywane])","v":{"v":5700,"d":"5,700"}},{"$f":"SUBTOTAL(109,Przychód[Rzeczywiste])","v":{"v":5500,"d":"5,500"}},{"$f":"SUBTOTAL(109,Przychód[Odchylenie])","v":-200}]

{"sheet":"Wydatki miesięczne","index":2,"n_rows":26,"n_cols":5,"rows_kept":26}
[null,{"$f":"Nazwa","v":"Nazwa"}]
[null,{"$f":"Tytuł_budżetu","v":"Budżet rodzinny"}]
[null,{"$f":"Miesiąc","v":"January"}]
[null,{"$f":"Rok","v":2017}]
[null,"Wydatki miesięczne","Przewidywane","Rzeczywiste","Odchylenie"]
[null,"Utrzymanie domu",{"v":1500,"d":"1,500"},{"v":1500,"d":"1,500"},{"$f":"Wydatek[[#This Row],[Przewidywane]]-Wydatek[[#This Row],[Rzeczywiste]]","v":0}]
[null,"Artykuły spożywcze",250,280,{"$f":"Wydatek[[#This Row],[Przewidywane]]-Wydatek[[#This Row],[Rzeczywiste]]","v":-30}]
[null,"Telefon",38,38,{"$f":"Wydatek[[#This Row],[Przewidywane]]-Wydatek[[#This Row],[Rzeczywiste]]","v":0}]
[null,"Prąd/gaz",65,78,{"$f":"Wydatek[[#This Row],[Przewidywane]]-Wydatek[[#This Row],[Rzeczywiste]]","v":-13}]
[null,"Woda/ścieki/wywóz śmieci",25,21,{"$f":"Wydatek[[#This Row],[Przewidywane]]-Wydatek[[#This Row],[Rzeczywiste]]","v":4}]
[null,"Telewizja kablowa",75,83,{"$f":"Wydatek[[#This Row],[Przewidywane]]-Wydatek[[#This Row],[Rzeczywiste]]","v":-8}]
[null,"Internet",60,60,{"$f":"Wydatek[[#This Row],[Przewidywane]]-Wydatek[[#This Row],[Rzeczywiste]]","v":0}]
[null,"Konserwacja/naprawy",0,60,{"$f":"Wydatek[[#This Row],[Przewidywane]]-Wydatek[[#This Row],[Rzeczywiste]]","v":-60}]
[null,"Opieka nad dziećmi",180,150,{"$f":"Wydatek[[#This Row],[Przewidywane]]-Wydatek[[#This Row],[Rzeczywiste]]","v":30}]
[null,"Czesne",250,250,{"$f":"Wydatek[[#This Row],[Przewidywane]]-Wydatek[[#This Row],[Rzeczywiste]]","v":0}]
[null,"Zwierzęta",75,80,{"$f":"Wydatek[[#This Row],[Przewidywane]]-Wydatek[[#This Row],[Rzeczywiste]]","v":-5}]
[null,"Transport",280,260,{"$f":"Wydatek[[#This Row],[Przewidywane]]-Wydatek[[#This Row],[Rzeczywiste]]","v":20}]
[null,"Wydatki osobiste",75,65,{"$f":"Wydatek[[#This Row],[Przewidywane]]-Wydatek[[#This Row],[Rzeczywiste]]","v":10}]
[null,"Ubezpieczenie",255,255,{"$f":"Wydatek[[#This Row],[Przewidywane]]-Wydatek[[#This Row],[Rzeczywiste]]","v":0}]
[null,"Karty kredytowe",100,100,{"$f":"Wydatek[[#This Row],[Przewidywane]]-Wydatek[[#This Row],[Rzeczywiste]]","v":0}]
[null,"Pożyczki",0,0,{"$f":"Wydatek[[#This Row],[Przewidywane]]-Wydatek[[#This Row],[Rzeczywiste]]","v":0}]
[null,"Podatki",0,0,{"$f":"Wydatek[[#This Row],[Przewidywane]]-Wydatek[[#This Row],[Rzeczywiste]]","v":0}]
[null,"Prezenty/cele charytatywne",150,150,{"$f":"Wydatek[[#This Row],[Przewidywane]]-Wydatek[[#This Row],[Rzeczywiste]]","v":0}]
[null,"Oszczędności",225,225,{"$f":"Wydatek[[#This Row],[Przewidywane]]-Wydatek[[#This Row],[Rzeczywiste]]","v":0}]
[null,"Inne",0,0,{"$f":"Wydatek[[#This Row],[Przewidywane]]-Wydatek[[#This Row],[Rzeczywiste]]","v":0}]
[null,"Suma",{"$f":"SUBTOTAL(109,Wydatek[Przewidywane])","v":{"v":3603,"d":"3,603"}},{"$f":"SUBTOTAL(109,Wydatek[Rzeczywiste])","v":{"v":3655,"d":"3,655"}},{"$f":"SUBTOTAL(109,Wydatek[Odchylenie])","v":-52}]

{"sheet":"DANE WYKRESU","index":3,"n_rows":6,"n_cols":4,"rows_kept":6,"hidden":true}
[null,"DANE WYKRESU"]
[]
[null,null,"Przewidywane","Rzeczywiste"]
[null,"Przepływ gotówkowy",{"$f":"Przepływ_gotówkowy[[#Totals],[Przewidywane]]","v":2097},{"$f":"Przepływ_gotówkowy[[#Totals],[Rzeczywiste]]","v":1845}]
[null,"Przychód miesięczny",{"$f":"Przychód[[#Totals],[Przewidywane]]","v":5700},{"$f":"Przychód[[#Totals],[Rzeczywiste]]","v":5500}]
[null,"Wydatki miesięczne",{"$f":"Wydatek[[#Totals],[Przewidywane]]","v":3603},{"$f":"Wydatek[[#Totals],[Rzeczywiste]]","v":3655}]